[Event "21st Bangkok CC Open 2024"]
[Site "Bangkok"]
[Date "2024.04.17"]
[Round "5.2"]
[White "Dinh Nho Kiet"]
[Black "Chernyavsky, Alexander"]
[Result "1/2-1/2"]
[ECO "E35"]
[WhiteElo "2245"]
[BlackElo "2354"]
[Annotator "TA"]
[PlyCount "113"]
[EventDate "2024.04.13"]
[EventType "swiss"]
[EventCountry "THA"]
[SourceTitle "playchess.com"]
[Source "ChessBase"]
[SourceQuality "1"]
[TimeControl "40/5400+30:1800+30"]

{[%evp 15,113,18,41,16,20,30,50,4,22,0,11,2,64,54,55,21,29,29,22,30,33,35,29,26,29,30,79,56,58,60,65,68,100,117,110,21,12,18,28,16,22,8,20,0,0,0,0,0,0,0,22,0,0,0,6,0,0,0,0,-22,-18,-25,-22,-21,-29,-62,-17,-58,-62,-88,-89,-100,-15,-64,-31,-43,-8,-19,-4,-8,0,0,0,0,0,0,0,0,0,0,0,0,0,0,0,0,0,0,0,0]} 1. d4 {[%emt 0:00:10]} Nf6 {[%emt 0:00:29]} 2. c4 {[%emt 0:00:08]} e6 {[%emt 0:00:09]} 3. Nc3 {[%emt 0:00:12]} Bb4 {[%emt 0:00:05]} 4. Qc2 {[%emt 0:00:07]} d5 {[%emt 0:07:34]} 5. cxd5 {[%emt 0:00:22]} exd5 {[%emt 0:02:52]} 6. Bg5 {[%emt 0:01:08]} h6 {[%emt 0:07:20]} 7. Bh4 {[%emt 0:07:13]} c5 {[%emt 1:15:31]} 8. dxc5 {[%emt 0:09:30]} Nc6 {[%emt 0:00:00][%cal Og7g5]} 9. e3 {[%emt 0:03:12]} g5 {[%emt 0:00:00]} 10. Bg3 {[%emt 0:00:15]} Qa5 {[%emt 0:00:00][%cal Od5d4]} 11. O-O-O {[%emt 0:09:44] White is slightly better.} Qxc5 {[%emt 0:00:00]} 12. Nb5 {[%emt 0:18:25]} Qxc2+ {[%emt 0:00:00]} 13. Kxc2 {[%emt 0:00:01]} Bf5+ {[%emt 0:00:00]} (13... O-O $11) 14. Bd3 $14 {[%emt 0:01:08]} Bxd3+ {[%emt 0:00:00]} 15. Kxd3 {[%emt 0:00:40] [#] Threatens to win with Nc7+.} Ke7 {[%emt 0:00:00]} 16. Nf3 {[%emt 0:02:02]} a6 {[%emt 0:00:00]} 17. Nbd4 {[%emt 0:00:30]} Ne4 {[%emt 0:00:00]} 18. Nxc6+ {[%emt 0:15:30]} bxc6 {[%emt 0:00:00]} 19. Nd4 {[%emt 0:00:06]} Rac8 {[%emt 0:00:00]} 20. f3 {[%emt 0:00:54]} Nc5+ {[%emt 0:00:00]} (20... Nxg3 $11 21. hxg3 h5) 21. Ke2 {[%emt 0:01:58] [#] Rc1 is the strong threat.} Ne6 {[%emt 0:00:00]} 22. Be5 {[%emt 0:00:52]} f6 {[%emt 0:00:00]} 23. Nf5+ {[%emt 0:00:20]} Kf7 {[%emt 0:00:00]} 24. Bd6 {[%emt 0:00:54] White is more active.} Ng7 {[%emt 0:00:00]} 25. Nxg7 {[%emt 0:04:03]} ({White should play} 25. Nxh6+ $16 Rxh6 26. Bxb4) 25... Bxd6 $11 {[%emt 0:00:00]} 26. Nf5 {[%emt 0:00:03]} Bb8 {[%emt 0:00:00]} 27. Rd3 {[%emt 0:03:52]} Be5 {[%emt 0:00:00]} 28. b3 {[%emt 0:03:16]} Rc7 {[%emt 0:00:00]} 29. h3 {[%emt 0:03:59]} h5 {[%emt 0:00:00]} 30. Rc1 {[%emt 0:02:06]} Rb8 {[%emt 0:00:00]} 31. e4 {[%emt 0:02:29]} dxe4 {[%emt 0:00:10]} 32. fxe4 {[%emt 0:00:05]} a5 {[%emt 0:01:45][%cal Oa5a4]} 33. Rc4 {[%emt 0:01:12]} Rb4 {[%emt 0:00:06]} 34. Ne3 {[%emt 0:00:49]} Ke8 {[%emt 0:03:21]} 35. a4 {[%emt 0:10:45]} Rb8 {[%emt 0:00:49]} 36. Rc5 {[%emt 0:00:00][%cal Oe3c4]} Rd7 {[%emt 0:00:20] And now ...Rxd3 would win.} 37. Rxd7 {[%emt 0:00:00]} Kxd7 {[%emt 0:00:22][%mdl 4096] Endgame. KRB-KRN} 38. Nc4 {[%emt 0:00:00]} Bd4 {[%emt 0:00:25]} 39. Rxa5 {[%emt 0:00:00]} Rxb3 {[%emt 0:00:04]} 40. Rf5 {[%emt 0:00:00]} Ke6 {[%emt 0:05:29]} 41. a5 {[%emt 0:32:18][%cal Oh3h4]} Rg3 {[%emt 0:31:05]} 42. Kf1 {[%emt 0:00:00]} Rc3 {[%emt 0:00:00]} 43. Nd2 {[%emt 0:00:00]} Rc2 {[%emt 0:04:04]} (43... Be3 $17 44. Ke2 Bf4) 44. Nb3 {[%emt 0:00:00]} (44. Nf3 $11 c5 45. g3 (45. Nxd4+ cxd4 46. Rd5 Ra2 $11)) 44... Ba7 {[%emt 0:00:00]} 45. h4 {[%emt 0:00:00]} g4 {[%emt 0:00:00] Strongly threatening ...Rc3.} 46. Rxh5 {[%emt 0:00:00] The position is equal.} Rf2+ {[%emt 0:00:00]} 47. Ke1 {[%emt 0:00:00]} Rxg2 {[%emt 0:00:00]} 48. Nc5+ {[%emt 0:00:00]} Kd6 {[%emt 0:00:00]} 49. Nb7+ {[%emt 0:00:00]} Ke7 {[%emt 0:00:00] White must now prevent ...Be3.} 50. Rh7+ {[%emt 0:00:00]} Kf8 {[%emt 0:00:00]} 51. Nd8 {[%emt 0:00:00]} Be3 {[%emt 0:00:00]} 52. Ne6+ {[%emt 0:00:00]} (52. Nxc6 $2 {is the wrong capture.} g3 53. e5 Rc2 54. exf6 g2 $19 (54... Rxc6 $2 55. Rg7 $19)) 52... Kg8 $1 {[%emt 0:00:00]} 53. Rg7+ {[%emt 0:00:00]} Kh8 {[%emt 0:00:00]} 54. Kf1 {[%emt 0:00:00]} Rf2+ {[%emt 0:00:00]} 55. Ke1 {[%emt 0:00:00]} f5 {[%emt 0:00:00]} 56. exf5 {[%emt 0:00:00]} Rxf5 {[%emt 0:00:00]} 57. Rxg4 {[%emt 0:00:00] Weighted Error Value: White=0.10 (very precise) /Black=0.12 (very precise) .  Mistake:       	White=2     	Black=3      Inaccurate:     	White=4     	Black=4      OK:         	White=18    	Black=19     Best:        	White=6     	Black=6      Strong:       	---       	Black=1} 1/2-1/2

[Event "21st Bangkok CC Open 2024"]
[Site "Bangkok"]
[Date "2024.04.17"]
[Round "5.3"]
[White "Concio, Michael Jr."]
[Black "Bernadskiy, Vitaliy"]
[Result "0-1"]
[ECO "E21"]
[WhiteElo "2399"]
[BlackElo "2561"]
[Annotator "TA"]
[PlyCount "68"]
[EventDate "2024.04.13"]
[EventType "swiss"]
[EventCountry "THA"]
[SourceTitle "playchess.com"]
[Source "ChessBase"]
[SourceQuality "1"]
[TimeControl "40/5400+30:1800+30"]

{[%evp 14,68,17,2,6,0,-10,-48,-47,-42,-43,-45,-54,-47,-52,-54,-43,-31,-33,-31,-32,-66,-58,-66,-67,-73,-69,-71,-71,-160,-81,-158,-141,-151,0,-54,-35,-32,-13,-26,-39,-16,-30,-33,-33,-44,-60,-73,-50,-62,-36,-163,-126,-275,-273,-1980,-842]} 1. d4 {[%emt 0:00:12]} Nf6 {[%emt 0:00:09]} 2. c4 {[%emt 0:00:26]} e6 {[%emt 0:00:08]} 3. Nc3 {[%emt 0:00:15]} Bb4 {[%emt 0:00:23]} 4. Bd2 {[%emt 0:01:03]} O-O {[%emt 0:00:54]} 5. Nf3 {[%emt 0:01:04]} b6 {[%emt 0:00:52]} 6. e3 {[%emt 0:01:57]} Bb7 {[%emt 0:01:38]} 7. Bd3 {[%emt 0:02:19]} d6 {[%emt 0:00:06]} 8. Qc2 {[%emt 0:10:50]} Nbd7 {[%emt 0:01:58]} 9. a3 {[%emt 0:07:24]} Bxc3 {[%emt 0:03:17]} 10. bxc3 {[%emt 0:00:09]} e5 {[%emt 0:00:44] aiming for ...e4. Black is slightly better.} 11. Ng5 {[%emt 0:00:06]} h6 {[%emt 0:02:22]} (11... Bxg2 12. Bxh7+ Kh8 13. Rg1 $16) 12. Ne4 {[%emt 0:04:07]} Nxe4 {[%emt 0:03:09]} 13. Bxe4 {[%emt 0:00:05]} Bxe4 {[%emt 0:00:07]} 14. Qxe4 {[%emt 0:00:05]} c5 {[%emt 0:00:12]} 15. O-O {[%emt 0:03:10]} Rc8 {[%emt 0:00:47]} 16. Qd3 {[%emt 0:02:13]} Re8 {[%emt 0:02:07]} 17. f3 {[%emt 0:01:47]} Qe7 {[%emt 0:03:17]} 18. Rac1 $1 {[%emt 0:12:49]} e4 {[%emt 0:04:32]} 19. Qb1 {[%emt 0:00:30]} Nb8 {[%emt 0:02:24]} 20. f4 {[%emt 0:14:32]} Nc6 {[%emt 0:00:47]} 21. f5 {[%emt 0:00:53]} ({White should play} 21. Qa2) 21... f6 {[%emt 0:00:44]} (21... Qb7 $142 22. Qa2 Na5) 22. a4 {[%emt 0:01:13]} (22. Qa2 $142) 22... Na5 $17 {[%emt 0:00:05]} 23. Qa2 {[%emt 0:00:07] [#]} Nc6 $2 {[%emt 0:11:55]} (23... Qb7 $1 $17 {Hoping for ...Qa6.} 24. Rb1 cxd4 25. c5+ d5 (25... Qf7 26. Qxf7+ Kxf7 27. cxd4 $15) 26. cxd4 Nc4) 24. Rf4 {[%emt 0:02:27]} (24. Qb1 $11) 24... Qf7 {[%emt 0:00:35]} 25. Be1 {[%emt 0:01:47]} d5 {[%emt 0:04:36]} 26. cxd5 {[%emt 0:00:30]} cxd4 {[%emt 0:00:28]} 27. Qb1 {[%emt 0:19:55] Prevents Nb4} (27. exd4 $2 {too greedy.} Nb4 28. Qd2 Nd3 $19 (28... Nxd5 $2 29. Rh4 $19)) 27... Ne5 {[%emt 0:03:55] ...Nd3 would now be deadly.} 28. Rxe4 {[%emt 0:07:23]} dxe3 {[%emt 0:00:43]} 29. c4 {[%emt 0:00:40][%cal Oe1g3]} Qd7 {[%emt 0:05:36][%csl LRa4,LRf5]} 30. Qb3 {[%emt 0:01:26]} Qxf5 {[%emt 0:00:43] Black is much more active.} 31. Rxe3 {[%emt 0:02:13]} Ng4 $40 {[%emt 0:02:19][%mdl 128] Black attacks.} 32. Rf3 {[%emt 0:02:20]} (32. Rxe8+ $15 Rxe8 33. Qf3) 32... Qg5 {[%emt 0:01:20]} 33. Qb2 {[%emt 0:00:31] [#]} (33. Qd1 $17) 33... Rxc4 $1 $19 {[%emt 0:01:09]} ({But not} 33... Ne5 34. Rg3 Nxc4 35. Rxc4 Rxe1+ 36. Kf2 Qf5+ 37. Rf3 $17) 34. Qb5 $2 {[%emt 0:00:31]} (34. Bd2 Rxc1+ (34... Qxd5 $2 35. Rxc4 Qxc4 36. h3 $19) 35. Qxc1 Qxd5 36. h3) 34... Rce4 {[%emt 0:43:29] Weighted Error Value: White=0.47/Black=0.12 (very precise) .  Mistake:       	White=6     	Black=3      Inaccurate:     	White=2     	Black=1      OK:         	White=6     	Black=11     Best:        	White=4     	Black=3      Strong:       	White=1     	Black=1} (34... Qe5 $142 35. Qxe8+ Qxe8) 0-1

[Event "21st Bangkok CC Open 2024"]
[Site "Bangkok"]
[Date "2024.04.17"]
[Round "5.4"]
[White "Pranesh M"]
[Black "Danilenko, Dmitriy"]
[Result "1/2-1/2"]
[ECO "C65"]
[WhiteElo "2538"]
[BlackElo "2400"]
[Annotator "TA"]
[PlyCount "78"]
[EventDate "2024.04.13"]
[EventType "swiss"]
[EventCountry "THA"]
[SourceTitle "playchess.com"]
[Source "ChessBase"]
[SourceQuality "1"]
[TimeControl "40/5400+30:1800+30"]

{[%evp 9,78,22,26,14,23,17,16,15,26,16,27,30,14,11,50,10,35,35,91,92,83,82,91,104,87,100,97,91,79,58,66,55,58,50,92,31,30,28,35,32,27,26,29,20,19,41,33,21,27,22,20,34,31,15,20,18,14,0,0,0,0,0,0,0,0,0,0,0,0,0,0]} 1. e4 {[%emt 0:04:02]} e5 {[%emt 0:00:31]} 2. Nf3 {[%emt 0:00:06]} Nc6 {[%emt 0:00:07]} 3. Bb5 {[%emt 0:00:19]} Nf6 {[%emt 0:00:11]} 4. d3 {[%emt 0:00:04]} Bc5 {[%emt 0:00:05]} 5. Bxc6 {[%emt 0:00:23]} dxc6 {[%emt 0:00:14]} 6. Nbd2 {[%emt 0:00:13][%cal Oe1g1]} (6. Nxe5 $2 Qd4 7. Be3 Qxe5 $19) 6... Be6 {[%emt 0:00:25]} 7. Nb3 {[%emt 0:01:56]} (7. Nxe5 $2 Qd4 8. Rf1 Qxe5 $19) 7... Bd6 {[%emt 0:04:51]} 8. Na5 {[%emt 0:05:26]} Bb4+ {[%emt 0:22:16]} 9. Bd2 {[%emt 0:00:13]} Bxa5 {[%emt 0:00:12]} 10. Bxa5 {[%emt 0:00:07]} Nd7 {[%emt 0:00:24]} 11. d4 {[%emt 0:07:54]} exd4 {[%emt 0:12:05]} (11... Bg4 $5) 12. Qxd4 {[%emt 0:06:56]} f6 {[%emt 0:10:22]} 13. O-O-O {[%emt 0:01:55]} Nb6 {[%emt 0:04:36] Black is weak on the dark squares} (13... O-O $14) 14. Qc3 $16 {[%emt 0:01:31]} Qe7 {[%emt 0:00:18]} 15. Bb4 {[%emt 0:06:34]} Qf7 {[%emt 0:00:17]} 16. Rhe1 {[%emt 0:06:26]} Bd7 {[%emt 0:08:32]} 17. b3 {[%emt 0:07:54]} O-O-O {[%emt 0:00:44]} 18. a4 {[%emt 0:01:14] White has more active pieces.} Kb8 {[%emt 0:02:20]} 19. Nd4 {[%emt 0:00:27] aiming for a5.} Nc8 {[%emt 0:00:49]} 20. f4 {[%emt 0:02:33]} Rhe8 {[%emt 0:00:53]} 21. Kb2 {[%emt 0:11:45]} Qg6 {[%emt 0:04:28][%csl LRe4,LRg2]} 22. Rd2 {[%emt 0:01:53]} (22. a5 $16) 22... Nd6 $1 $14 {[%emt 0:09:29]} ({But not} 22... Rxe4 $6 23. f5 Qe8 (23... Bxf5 $2 {loses.} 24. Nxc6+ bxc6 25. Rxd8 $18) 24. Rxe4 Qxe4 25. Ne6 Bxe6 26. Rxd8 Bxf5 27. g3 $16) 23. Bxd6 {[%emt 0:04:32]} cxd6 {[%emt 0:00:06]} 24. Rde2 {[%emt 0:04:15]} Bc8 {[%emt 0:06:47]} 25. g3 {[%emt 0:03:55]} Qf7 {[%emt 0:03:16]} 26. Re3 {[%emt 0:02:37]} Qc7 {[%emt 0:00:40] [#]} 27. e5 $1 {[%emt 0:02:51]} fxe5 {[%emt 0:01:20]} 28. fxe5 {[%emt 0:00:04]} dxe5 {[%emt 0:00:51] [#]} 29. Rxe5 {[%emt 0:00:31]} Rxe5 {[%emt 0:00:18]} 30. Rxe5 {[%emt 0:00:04]} Qd6 {[%emt 0:00:28]} 31. Nf3 {[%emt 0:01:15]} Qf6 {[%emt 0:03:17] The position is equal.} 32. a5 {[%emt 0:01:06]} Kc7 {[%emt 0:01:35]} 33. Re3 {[%emt 0:05:06]} (33. Ng5 {is interesting.} Bf5 34. g4 Qxg5 35. Rxf5 Qxg4 36. Rf7+) 33... Qxc3+ {[%emt 0:00:29]} 34. Kxc3 $11 {[%emt 0:00:02][%mdl 4096] Endgame. KRB-KRN} Rf8 {[%emt 0:00:59]} 35. Nd4 {[%emt 0:01:12]} Kd6 {[%emt 0:01:45] Prevents Re7} 36. Nf3 {[%emt 0:01:07]} b6 {[%emt 0:01:06]} 37. axb6 {[%emt 0:00:35]} axb6 {[%emt 0:00:01]} 38. Rd3+ {[%emt 0:01:34]} Kc7 {[%emt 0:00:14]} 39. Re3 {[%emt 0:00:04]} Kd6 {[%emt 0:00:03] Weighted Error Value: White=0.06 (flawless) /Black=0.06 (flawless) .  Mistake:       	White=1     	Black=1      Inaccurate:     	White=1     	Black=2      OK:         	White=7     	Black=15     Best:        	White=2     	Black=1      Strong:       	---       	Black=1} 1/2-1/2

[Event "21st Bangkok CC Open 2024"]
[Site "Bangkok"]
[Date "2024.04.17"]
[Round "5.5"]
[White "Manon, Reja Neer"]
[Black "Makhnev, Denis"]
[Result "1-0"]
[ECO "C78"]
[WhiteElo "2285"]
[BlackElo "2516"]
[Annotator "TA"]
[PlyCount "85"]
[EventDate "2024.04.13"]
[EventType "swiss"]
[EventCountry "THA"]
[SourceTitle "playchess.com"]
[Source "ChessBase"]
[SourceQuality "1"]
[TimeControl "40/5400+30:1800+30"]

{[%evp 20,85,27,0,0,0,13,0,0,0,0,-2,0,-9,-12,-12,-16,-7,0,0,22,-24,-30,-26,-26,-24,3,-36,14,16,32,31,38,29,20,8,39,35,95,104,109,111,96,100,100,87,106,100,102,114,106,83,122,116,118,127,156,141,122,152,244,14,17,0,240,239,283,299]} 1. e4 {[%emt 0:00:04]} e5 {[%emt 0:02:31]} 2. Nf3 {[%emt 0:00:02]} Nc6 {[%emt 0:00:07]} 3. Bb5 {[%emt 0:00:04][%cal Bf1b5,Bb5a4,Ba4b3][%mdl 32]} a6 {[%emt 0:00:04]} 4. Ba4 {[%emt 0:00:03]} Nf6 {[%emt 0:00:05]} 5. O-O {[%emt 0:00:06]} b5 {[%emt 0:00:02]} 6. Bb3 {[%emt 0:00:07]} Bb7 {[%emt 0:00:04]} 7. Re1 {[%emt 0:03:24]} Bc5 {[%emt 0:05:54]} 8. c3 {[%emt 0:02:30][%cal Bc2c3,Bc3d4,Bd4d5][%mdl 32]} d6 {[%emt 0:00:08]} 9. d4 {[%emt 0:02:58]} Bb6 {[%emt 0:00:44]} 10. Be3 {[%emt 0:02:40]} O-O {[%emt 0:00:18]} 11. Nbd2 {[%emt 0:00:56]} exd4 {[%emt 0:00:09]} 12. cxd4 {[%emt 0:01:47]} Nb4 {[%emt 0:00:06][%cal Oc7c5]} 13. Qb1 {[%emt 0:03:57]} c5 {[%emt 0:00:08] The position is equal.} 14. a3 {[%emt 0:05:23]} Nc6 {[%emt 0:00:07]} 15. d5 {[%emt 0:09:31]} Ne7 {[%emt 0:00:07]} 16. Bc2 {[%emt 0:06:32]} Ng4 {[%emt 0:03:13]} 17. Bg5 {[%emt 0:00:54][%cal Be3g5,Bg5h4,Bh4g3][%mdl 32] Threatens to win with e5.} f6 {[%emt 0:00:51]} 18. Bh4 {[%emt 0:02:04]} Ng6 {[%emt 0:01:00]} 19. Bg3 {[%emt 0:02:34]} Qc7 {[%emt 0:09:25]} 20. Qd1 {[%emt 0:04:19]} (20. h3 $142 N4e5 21. Kh1) 20... Bc8 $11 {[%emt 0:01:26]} (20... c4 {with more complications.} 21. b3 c3 22. Nf1 Bc8) 21. h3 {[%emt 0:05:24]} N4e5 {[%emt 0:00:08]} 22. Nf1 {[%emt 0:00:07]} Ba5 {[%emt 0:10:32]} 23. Re3 {[%emt 0:11:01]} Bd7 {[%emt 0:17:44]} ({Black should try} 23... Nc4 $15) 24. N3d2 $1 {[%emt 0:03:47]} c4 {[%emt 0:06:53]} 25. f4 {[%emt 0:02:04]} Nf7 {[%emt 0:00:05]} 26. Kh1 {[%emt 0:03:46]} Bb6 {[%emt 0:05:49]} 27. Re1 {[%emt 0:01:05]} Rae8 {[%emt 0:05:48]} 28. Nf3 {[%emt 0:04:57]} c3 {[%emt 0:07:51]} (28... a5 $14) 29. b4 $16 {[%emt 0:07:00]} Qa7 {[%emt 0:00:20]} 30. Re2 {[%emt 0:03:55]} a5 {[%emt 0:00:14]} 31. Rb1 {[%emt 0:02:56]} Rc8 {[%emt 0:05:48]} 32. Qd3 {[%emt 0:01:53]} axb4 {[%emt 0:00:12]} 33. axb4 {[%emt 0:00:01]} Rc4 {[%emt 0:00:06]} 34. Bb3 {[%emt 0:02:03]} c2 {[%emt 0:02:05]} 35. Rxc2 {[%emt 0:01:26]} (35. Bxc4 $2 {perishes.} cxb1=B (35... cxb1=R $2 36. Qxb1 bxc4 37. Qc1 $19) 36. Qxb1 bxc4 $19) 35... Rxc2 {[%emt 0:00:17]} 36. Bxc2 {[%emt 0:00:42]} Rc8 {[%emt 0:00:05]} 37. Bb3 {[%emt 0:01:59]} Qa3 {[%emt 0:02:06]} 38. Qd2 {[%emt 0:00:00]} Re8 {[%emt 0:00:07]} 39. Bc2 {[%emt 0:00:31]} Bxh3 {[%emt 0:02:48] [#]} (39... Ra8 $16 40. Bd3 Ra4) 40. Rb3 $2 {[%emt 0:00:06]} ({White has to play} 40. f5 $1 $18) 40... Qa1 $11 {[%emt 0:00:06]} 41. Rb1 {[%emt 0:31:13]} (41. Bd3 $11 Bd7 42. Rb1) 41... Qa3 $18 {[%emt 0:30:02] [#]} 42. f5 $1 {[%emt 0:00:00]} Nf8 {[%emt 0:00:00]} 43. N1h2 {[%emt 0:00:00] Inhibits Bg4.   Weighted Error Value: White=0.13 (very precise) /Black=0.14 (very precise) .  Missed win:     	White=1     	---        Mistake:       	White=2     	Black=3      Inaccurate:     	White=1     	Black=3      OK:         	White=10    	Black=12     Best:        	White=4     	Black=4      Strong:       	White=2     	---} 1-0

[Event "21st Bangkok CC Open 2024"]
[Site "Bangkok"]
[Date "2024.04.17"]
[Round "5.6"]
[White "Zhao, Zong-Yuan"]
[Black "Ritviz, Parab"]
[Result "1/2-1/2"]
[ECO "D35"]
[WhiteElo "2485"]
[BlackElo "2346"]
[Annotator "TA"]
[PlyCount "37"]
[EventDate "2024.04.13"]
[EventType "swiss"]
[EventCountry "THA"]
[SourceTitle "playchess.com"]
[Source "ChessBase"]
[SourceQuality "1"]
[TimeControl "40/5400+30:1800+30"]

{[%evp 17,37,0,0,0,32,32,38,38,75,41,43,50,46,37,35,35,37,0,0,0,19,0]} 1. d4 {[%emt 1:31:00]} d5 {[%emt 0:08:45]} 2. c4 {[%emt 0:00:00]} e6 {[%emt 0:00:30]} 3. Nc3 {[%emt 0:00:00]} Nf6 {[%emt 0:00:24]} 4. cxd5 {[%emt 0:00:00]} exd5 {[%emt 0:00:07]} 5. Bg5 {[%emt 0:00:00]} c6 {[%emt 0:05:32]} 6. e3 {[%emt 0:00:00]} Bd6 {[%emt 0:08:49]} 7. Bd3 {[%emt 0:00:00]} O-O {[%emt 0:00:32]} 8. Nf3 {[%emt 0:00:00]} Be6 {[%emt 0:23:16]} 9. O-O {[%emt 0:00:00]} Nbd7 {[%emt 0:00:17]} 10. Qc2 {[%emt 0:00:00][%cal Od3h7]} h6 {[%emt 0:12:50]} 11. Bf4 {[%emt 0:00:00]} Be7 {[%emt 0:03:35]} 12. h3 {[%emt 0:00:00] White is slightly better.} c5 {[%emt 0:05:18]} 13. dxc5 {[%emt 0:00:00] White has more active pieces.} Nxc5 {[%emt 0:00:06]} 14. Rfd1 {[%emt 0:00:00]} Rc8 {[%emt 0:01:30]} 15. Qe2 {[%emt 0:00:00]} Qb6 {[%emt 0:06:11]} 16. Be5 {[%emt 0:00:00]} Nfe4 {[%emt 0:02:27]} 17. Rac1 {[%emt 0:00:00]} Nxd3 {[%emt 0:03:16]} 18. Rxd3 {[%emt 0:00:00]} Qa6 {[%emt 0:00:15]} 19. Nd4 {[%emt 0:00:00] Weighted Error Value: White=0.11 (very precise) /Black=0.10 (very precise) .  Inaccurate:     	White=2     	Black=2      OK:         	White=4     	Black=3} 1/2-1/2

[Event "21st Bangkok CC Open 2024"]
[Site "Bangkok"]
[Date "2024.04.17"]
[Round "5.7"]
[White "Xie, Felix"]
[Black "Srihari L R"]
[Result "1/2-1/2"]
[ECO "E60"]
[WhiteElo "2291"]
[BlackElo "2482"]
[Annotator "TA"]
[PlyCount "78"]
[EventDate "2024.04.13"]
[EventType "swiss"]
[EventCountry "THA"]
[SourceTitle "playchess.com"]
[Source "ChessBase"]
[SourceQuality "1"]
[TimeControl "40/5400+30:1800+30"]

{[%evp 20,78,17,6,21,11,14,3,13,-1,7,-9,0,0,22,-10,0,9,34,16,12,0,7,-6,0,0,0,0,0,0,22,19,16,14,25,0,0,0,0,0,0,0,0,2,11,9,53,0,0,0,2,0,0,0,0,0,0,0,0,0,0]} 1. Nf3 {[%emt 0:00:46]} Nf6 {[%emt 0:00:51]} 2. b3 {[%emt 0:00:21]} g6 {[%emt 0:01:38]} 3. Bb2 {[%emt 0:00:10]} Bg7 {[%emt 0:00:05]} 4. g3 {[%emt 0:00:36]} O-O {[%emt 0:02:01]} 5. Bg2 {[%emt 0:00:11]} d6 {[%emt 0:00:49]} 6. d4 {[%emt 0:00:06]} Nbd7 {[%emt 0:02:03]} 7. O-O {[%emt 0:00:49]} e5 {[%emt 0:00:31]} 8. dxe5 {[%emt 0:01:45]} Ng4 {[%emt 0:00:07][%cal Bf6g4,Bg4h6,Bh6f7][%mdl 32]} 9. c4 {[%emt 0:00:35]} dxe5 {[%emt 0:08:57]} 10. h3 {[%emt 0:09:38]} Nh6 {[%emt 0:00:58]} 11. e4 {[%emt 0:00:21]} f6 {[%emt 0:02:10]} 12. Qc2 {[%emt 0:03:39]} c6 {[%emt 0:04:06]} 13. Rd1 {[%emt 0:08:34]} Nf7 {[%emt 0:01:02]} 14. Nbd2 {[%emt 0:09:39]} Re8 {[%emt 0:19:23]} 15. Nf1 {[%emt 0:14:56]} Bf8 {[%emt 0:02:31]} 16. h4 {[%emt 0:14:57][%cal Oh4h5]} Qb6 {[%emt 0:06:29]} 17. a3 {[%emt 0:00:38]} a5 {[%emt 0:04:25]} 18. Bc3 {[%emt 0:00:05]} Be7 {[%emt 0:04:57]} 19. Bh3 {[%emt 0:03:18]} Nf8 {[%emt 0:01:25]} 20. Bxc8 {[%emt 0:00:04]} Rexc8 {[%emt 0:00:09]} 21. Qb2 {[%emt 0:01:35]} Rd8 {[%emt 0:08:21]} 22. b4 {[%emt 0:07:04]} Rxd1 {[%emt 0:04:58]} 23. Rxd1 {[%emt 0:00:13]} axb4 {[%emt 0:00:05]} 24. axb4 {[%emt 0:00:15]} Ra4 {[%emt 0:00:15][%cal Re7b4]} 25. Ne3 {[%emt 0:06:37]} Qa7 {[%emt 0:09:03]} ({Reject} 25... Bxb4 26. Ng4 c5 27. Nfxe5 $16) 26. c5 {[%emt 0:02:12]} Qa6 {[%emt 0:02:04]} 27. Nd2 {[%emt 0:05:55]} (27. h5 {looks sharper.} Ra2 28. Qb3 Ra3 29. Qc2) 27... b5 $1 {[%emt 0:08:00] Prevents Ndc4} 28. cxb6 {[%emt 0:04:47]} Qxb6 {[%emt 0:00:03]} 29. Ndc4 {[%emt 0:00:05]} Qb5 {[%emt 0:00:26][%cal Re7b4]} 30. Na3 {[%emt 0:00:13]} Qb7 {[%emt 0:01:27]} 31. Qb3 {[%emt 0:01:03]} Ra8 {[%emt 0:00:44]} 32. Nac4 {[%emt 0:00:39][%cal Oc3e5]} Kg7 {[%emt 0:00:22]} 33. Rb1 {[%emt 0:00:27]} (33. f4 $1 $14 exf4 34. gxf4) 33... Qb5 $11 {[%emt 0:01:26] The position is equal.} 34. Kg2 {[%emt 0:03:21]} h5 {[%emt 0:00:46]} 35. Nc2 {[%emt 0:00:54]} Qa4 {[%emt 0:04:29]} 36. Qxa4 {[%emt 0:00:34]} Rxa4 {[%emt 0:00:01]} 37. Na5 {[%emt 0:00:10]} Nd8 {[%emt 0:00:26]} 38. Kf3 {[%emt 0:01:29]} Ra2 {[%emt 0:00:12]} 39. Rb2 {[%emt 0:00:27]} Rxb2 {[%emt 0:00:33] A rather calm draw.   Weighted Error Value: White=0.08 (flawless) /Black=0.06 (flawless) .  Mistake:       	White=1     	---        Inaccurate:     	White=1     	Black=1      OK:         	White=9     	Black=13     Strong:       	---       	Black=1} 1/2-1/2